[Event "Titled Tuesday Blitz October 25 Late 2022"]
[White "chess50years"]
[Black "Arnold, Ken"]
[BlackFideId "2056836"]
[WhiteElo "1489"]
[BlackElo "2302"]
[Result "1/2-1/2"]
[Round "08"]
[TimeControl "180+1"]
[Date "2022.10.26"]
[WhiteClock "0:00:28"]
[BlackClock "0:00:20"]

1. d4 {[%clk 0:03:00]}  d5 {[%clk 0:02:59]} 2. c4 {[%clk 0:03:00]}  c6 {[%clk 0:02:59]} 3. Nc3 {[%clk 0:02:58]}  Nf6 {[%clk 0:02:59]} 4. Nf3 {[%clk 0:02:57]}  dxc4 {[%clk 0:02:59]} 5. a4 {[%clk 0:02:50]}  Bf5 {[%clk 0:02:58]} 6. e3 {[%clk 0:02:50]}  e6 {[%clk 0:02:58]} 7. Bxc4 {[%clk 0:02:50]}  Be7 {[%clk 0:02:58]} 8. O-O {[%clk 0:02:49]}  O-O {[%clk 0:02:58]} 9. Ne5 {[%clk 0:02:48]}  Nbd7 {[%clk 0:02:57]} 10. f4 {[%clk 0:02:48]}  a6 {[%clk 0:02:56]} 11. a5 {[%clk 0:02:46]}  c5 {[%clk 0:02:55]} 12. d5 {[%clk 0:02:27]}  exd5 {[%clk 0:02:43]} 13. Nxd5 {[%clk 0:02:28]}  Nxd5 {[%clk 0:02:38]} 14. Bxd5 {[%clk 0:02:19]}  Nxe5 {[%clk 0:02:33]} 15. fxe5 {[%clk 0:02:19]}  Be6 {[%clk 0:02:31]} 16. e4 {[%clk 0:02:19]}  Qc7 {[%clk 0:02:28]} 17. Bf4 {[%clk 0:02:18]}  Rad8 {[%clk 0:02:26]} 18. Qb3 {[%clk 0:02:17]}  c4 {[%clk 0:02:23]} 19. Qxb7 {[%clk 0:02:17]}  Qc5+ {[%clk 0:02:20]} 20. Kh1 {[%clk 0:02:14]}  Bxd5 {[%clk 0:01:58]} 21. exd5 {[%clk 0:02:13]}  Rxd5 {[%clk 0:01:58]} 22. Bg3 {[%clk 0:02:04]}  Bg5 {[%clk 0:01:46]} 23. Qxa6 {[%clk 0:02:01]}  h5 {[%clk 0:01:41]} 24. Qb6 {[%clk 0:01:59]}  Qxb6 {[%clk 0:01:33]} 25. axb6 {[%clk 0:01:58]}  Rb5 {[%clk 0:01:33]} 26. Ra4 {[%clk 0:01:47]}  Rxb6 {[%clk 0:01:29]} 27. h4 {[%clk 0:01:45]}  Be3 {[%clk 0:01:19]} 28. Rxc4 {[%clk 0:01:45]}  Rxb2 {[%clk 0:01:18]} 29. Rc7 {[%clk 0:01:43]}  Rb4 {[%clk 0:01:05]} 30. e6 {[%clk 0:01:39]}  Rg4 {[%clk 0:00:57]} 31. exf7+ {[%clk 0:01:37]}  Kh7 {[%clk 0:00:55]} 32. Kh2 {[%clk 0:01:27]}  Bb6 {[%clk 0:00:30]} 33. Rb7 {[%clk 0:01:19]}  Bc5 {[%clk 0:00:29]} 34. Rc7 {[%clk 0:01:15]}  Rxg3 {[%clk 0:00:28]} 35. Rxc5 {[%clk 0:01:06]}  Rg4 {[%clk 0:00:27]} 36. g3 {[%clk 0:01:05]}  g6 {[%clk 0:00:25]} 37. Rc7 {[%clk 0:01:03]}  Kg7 {[%clk 0:00:26]} 38. Kh3 {[%clk 0:01:00]}  Re4 {[%clk 0:00:25]} 39. Rf2 {[%clk 0:00:53]}  Re3 {[%clk 0:00:25]} 40. Kg2 {[%clk 0:00:52]}  Re6 {[%clk 0:00:24]} 41. Rb2 {[%clk 0:00:50]}  Rxf7 {[%clk 0:00:23]} 42. Rxf7+ {[%clk 0:00:49]}  Kxf7 {[%clk 0:00:24]} 43. Rf2+ {[%clk 0:00:49]}  Kg7 {[%clk 0:00:24]} 44. Rd2 {[%clk 0:00:49]}  Re4 {[%clk 0:00:24]} 45. Rf2 {[%clk 0:00:49]}  Kh6 {[%clk 0:00:24]} 46. Rd2 {[%clk 0:00:48]}  Rb4 {[%clk 0:00:24]} 47. Rc2 {[%clk 0:00:48]}  Kg7 {[%clk 0:00:25]} 48. Ra2 {[%clk 0:00:47]}  Kf6 {[%clk 0:00:25]} 49. Rf2+ {[%clk 0:00:47]}  Ke5 {[%clk 0:00:24]} 50. Rd2 {[%clk 0:00:45]}  Kf5 {[%clk 0:00:24]} 51. Rf2+ {[%clk 0:00:45]}  Kg4 {[%clk 0:00:24]} 52. Ra2 {[%clk 0:00:44]}  g5 {[%clk 0:00:23]} 53. hxg5 {[%clk 0:00:30]}  Kxg5 {[%clk 0:00:23]} 54. Ra8 {[%clk 0:00:29]}  Rb2+ {[%clk 0:00:20]} 55. Kh3 {[%clk 0:00:29]}  Rb4 {[%clk 0:00:20]} 56. Ra5+ {[%clk 0:00:28]}  Kg6 {[%clk 0:00:20]} 57. Rc5 {[%clk 0:00:27]}  Ra4 {[%clk 0:00:19]} 58. Rb5 {[%clk 0:00:27]}  Rc4 {[%clk 0:00:19]} 59. Rb6+ {[%clk 0:00:27]}  Kg5 {[%clk 0:00:19]} 60. Rb5+ {[%clk 0:00:27]}  Kg6 {[%clk 0:00:19]} 61. Rb6+ {[%clk 0:00:27]}  Kg5 {[%clk 0:00:20]} 62. Rb5+ {[%clk 0:00:28]}  Kg6 {[%clk 0:00:20]} 1/2-1/2


[Site "https://www.chess.com"]

[Event "Titled Tuesday Blitz October 25 Late 2022"]
[White "Arbunic Castro, Giovanna"]
[Black "Kovacevic, Radmila"]
[WhiteFideId "3400549"]
[BlackFideId "933171"]
[WhiteElo "1903"]
[BlackElo "2208"]
[Result "0-1"]
[Round "09"]
[TimeControl "180+1"]
[Date "2022.10.26"]
[WhiteClock "0:01:05"]
[BlackClock "0:01:46"]

1. e4 {[%clk 0:03:00]}  e5 {[%clk 0:03:00]} 2. d4 {[%clk 0:02:59]}  exd4 {[%clk 0:02:59]} 3. Qxd4 {[%clk 0:02:58]}  Nc6 {[%clk 0:02:59]} 4. Qe3 {[%clk 0:02:57]}  Nf6 {[%clk 0:03:00]} 5. Nc3 {[%clk 0:02:56]}  Bb4 {[%clk 0:02:59]} 6. Bd2 {[%clk 0:02:55]}  O-O {[%clk 0:02:59]} 7. O-O-O {[%clk 0:02:54]}  Re8 {[%clk 0:02:58]} 8. f3 {[%clk 0:02:54]}  d5 {[%clk 0:02:57]} 9. Qf2 {[%clk 0:02:52]}  dxe4 {[%clk 0:02:54]} 10. Bg5 {[%clk 0:02:51]}  Qe7 {[%clk 0:02:45]} 11. Nd5 {[%clk 0:02:46]}  Qe5 {[%clk 0:02:29]} 12. f4 {[%clk 0:02:43]}  Qxd5 {[%clk 0:02:26]} 13. Rxd5 {[%clk 0:02:39]}  Nxd5 {[%clk 0:02:27]} 14. Bc4 {[%clk 0:02:19]}  Be6 {[%clk 0:02:25]} 15. f5 {[%clk 0:02:13]}  e3 {[%clk 0:02:14]} 16. Qf1 {[%clk 0:01:45]}  Bd2+ {[%clk 0:02:08]} 17. Kb1 {[%clk 0:01:36]}  Nc3+ {[%clk 0:02:02]} 18. bxc3 {[%clk 0:01:34]}  Bxc4 {[%clk 0:02:01]} 19. Qxc4 {[%clk 0:01:32]}  Ne5 {[%clk 0:02:01]} 20. Qe2 {[%clk 0:01:12]}  c5 {[%clk 0:01:51]} 21. f6 {[%clk 0:01:11]}  Re6 {[%clk 0:01:48]} 22. fxg7 {[%clk 0:01:05]}  Rb6+ {[%clk 0:01:46]} 0-1


[Site "https://www.chess.com"]

[Event "Titled Tuesday Blitz October 25 Late 2022"]
[White "Babazada, Khazar"]
[Black "Korobov, Anton"]
[WhiteFideId "13413554"]
[BlackFideId "14105730"]
[WhiteElo "2367"]
[BlackElo "2635"]
[Result "0-1"]
[Round "09"]
[TimeControl "180+1"]
[Date "2022.10.26"]
[WhiteClock "0:01:17"]
[BlackClock "0:00:47"]

1. e4 {[%clk 0:03:00]}  c5 {[%clk 0:02:58]} 2. Nf3 {[%clk 0:03:01]}  d6 {[%clk 0:02:59]} 3. d4 {[%clk 0:03:00]}  cxd4 {[%clk 0:03:00]} 4. Nxd4 {[%clk 0:03:01]}  Nf6 {[%clk 0:03:00]} 5. Nc3 {[%clk 0:02:59]}  a6 {[%clk 0:03:00]} 6. h3 {[%clk 0:02:58]}  e6 {[%clk 0:02:59]} 7. g4 {[%clk 0:02:59]}  Be7 {[%clk 0:03:00]} 8. g5 {[%clk 0:02:59]}  Nfd7 {[%clk 0:02:59]} 9. Be3 {[%clk 0:03:00]}  b5 {[%clk 0:02:59]} 10. a3 {[%clk 0:02:58]}  Bb7 {[%clk 0:03:00]} 11. h4 {[%clk 0:02:57]}  Nc6 {[%clk 0:03:00]} 12. Nxc6 {[%clk 0:02:57]}  Bxc6 {[%clk 0:03:00]} 13. Qd4 {[%clk 0:02:58]}  O-O {[%clk 0:02:50]} 14. O-O-O {[%clk 0:02:58]}  Rb8 {[%clk 0:02:47]} 15. Ne2 {[%clk 0:02:11]}  e5 {[%clk 0:02:34]} 16. Qd3 {[%clk 0:02:05]}  Nc5 {[%clk 0:02:25]} 17. Bxc5 {[%clk 0:02:02]}  dxc5 {[%clk 0:02:26]} 18. Qe3 {[%clk 0:01:50]}  Qc7 {[%clk 0:02:22]} 19. Nc3 {[%clk 0:01:50]}  b4 {[%clk 0:02:15]} 20. Nd5 {[%clk 0:01:50]}  Bxd5 {[%clk 0:02:15]} 21. Rxd5 {[%clk 0:01:51]}  c4 {[%clk 0:02:08]} 22. axb4 {[%clk 0:01:50]}  Rxb4 {[%clk 0:01:56]} 23. Qc3 {[%clk 0:01:27]}  Rfb8 {[%clk 0:01:18]} 24. b3 {[%clk 0:01:27]}  Bc5 {[%clk 0:01:04]} 25. Bxc4 {[%clk 0:01:26]}  Bd4 {[%clk 0:00:57]} 26. Qd3 {[%clk 0:01:26]}  a5 {[%clk 0:00:48]} 27. f4 {[%clk 0:01:16]}  a4 {[%clk 0:00:48]} 28. fxe5 {[%clk 0:01:16]}  axb3 {[%clk 0:00:49]} 29. Bxb3 {[%clk 0:01:17]}  Rxb3 {[%clk 0:00:47]} 0-1


[Site "https://www.chess.com"]

[Event "Titled Tuesday Blitz October 25 Late 2022"]
[White "Broca Jimenez, Fernando"]
[Black "Halak, Miklos"]
[WhiteFideId "5104742"]
[BlackFideId "726400"]
[WhiteElo "2062"]
[BlackElo "2197"]
[Result "0-1"]
[Round "09"]
[TimeControl "180+1"]
[Date "2022.10.26"]
[WhiteClock "0:00:46"]
[BlackClock "0:00:59"]

1. e4 {[%clk 0:03:00]}  e5 {[%clk 0:02:59]} 2. Nf3 {[%clk 0:03:00]}  Nc6 {[%clk 0:02:59]} 3. Bb5 {[%clk 0:03:00]}  a6 {[%clk 0:03:00]} 4. Ba4 {[%clk 0:03:00]}  b5 {[%clk 0:03:00]} 5. Bb3 {[%clk 0:03:00]}  Na5 {[%clk 0:03:01]} 6. Bxf7+ {[%clk 0:02:56]}  Kxf7 {[%clk 0:03:02]} 7. Nxe5+ {[%clk 0:02:56]}  Ke7 {[%clk 0:03:02]} 8. O-O {[%clk 0:02:54]}  Qe8 {[%clk 0:03:02]} 9. d4 {[%clk 0:02:53]}  Kd8 {[%clk 0:03:02]} 10. Nc3 {[%clk 0:02:50]}  Nf6 {[%clk 0:03:00]} 11. Bg5 {[%clk 0:02:44]}  Be7 {[%clk 0:03:00]} 12. Re1 {[%clk 0:02:42]}  h6 {[%clk 0:02:59]} 13. Bh4 {[%clk 0:02:42]}  g5 {[%clk 0:02:58]} 14. Bg3 {[%clk 0:02:42]}  h5 {[%clk 0:02:58]} 15. f3 {[%clk 0:02:40]}  h4 {[%clk 0:02:57]} 16. Bf2 {[%clk 0:02:40]}  Bb7 {[%clk 0:02:47]} 17. Qd2 {[%clk 0:02:35]}  Rg8 {[%clk 0:02:40]} 18. b3 {[%clk 0:02:32]}  Kc8 {[%clk 0:02:31]} 19. Ne2 {[%clk 0:02:23]}  Nc6 {[%clk 0:02:30]} 20. Nd3 {[%clk 0:02:19]}  g4 {[%clk 0:02:28]} 21. Bxh4 {[%clk 0:01:51]}  gxf3 {[%clk 0:02:27]} 22. Ng3 {[%clk 0:01:51]}  Nxd4 {[%clk 0:02:21]} 23. Nf2 {[%clk 0:01:42]}  Ne2+ {[%clk 0:02:12]} 24. Nxe2 {[%clk 0:01:29]}  fxe2 {[%clk 0:02:13]} 25. Rxe2 {[%clk 0:01:26]}  Qg6 {[%clk 0:01:47]} 26. Bg3 {[%clk 0:01:22]}  Nxe4 {[%clk 0:01:31]} 27. Nxe4 {[%clk 0:01:21]}  Bxe4 {[%clk 0:01:28]} 28. Rd1 {[%clk 0:01:20]}  Bc5+ {[%clk 0:01:25]} 29. Kh1 {[%clk 0:01:19]}  Bc6 {[%clk 0:01:21]} 30. Qf4 {[%clk 0:01:13]}  Bd6 {[%clk 0:01:15]} 31. Qe3 {[%clk 0:01:01]}  Bxg3 {[%clk 0:01:14]} 32. hxg3 {[%clk 0:01:00]}  Qxg3 {[%clk 0:01:10]} 33. Qxg3 {[%clk 0:01:01]}  Rxg3 {[%clk 0:01:09]} 34. Kh2 {[%clk 0:01:02]}  Rg7 {[%clk 0:01:05]} 35. c4 {[%clk 0:00:58]}  b4 {[%clk 0:01:03]} 36. c5 {[%clk 0:00:56]}  Kb7 {[%clk 0:01:03]} 37. Rd4 {[%clk 0:00:53]}  a5 {[%clk 0:01:02]} 38. a3 {[%clk 0:00:53]}  bxa3 {[%clk 0:01:02]} 39. Ra2 {[%clk 0:00:53]}  Rh8+ {[%clk 0:01:00]} 40. Kg1 {[%clk 0:00:53]}  Rhg8 {[%clk 0:01:00]} 41. b4 {[%clk 0:00:48]}  Rxg2+ {[%clk 0:00:59]} 42. Rxg2 {[%clk 0:00:47]}  Rxg2+ {[%clk 0:01:00]} 43. Kf1 {[%clk 0:00:47]}  a2 {[%clk 0:01:00]} 44. Rd1 {[%clk 0:00:46]}  axb4 {[%clk 0:00:59]} 0-1


[Site "https://www.chess.com"]

[Event "Titled Tuesday Blitz October 25 Late 2022"]
[White "Burke, Paul"]
[Black "Thiel, Thomas"]
[WhiteFideId "2605767"]
[BlackFideId "4615964"]
[WhiteElo "1856"]
[BlackElo "2230"]
[Result "0-1"]
[Round "09"]
[TimeControl "180+1"]
[Date "2022.10.26"]
[WhiteClock "0:00:52"]
[BlackClock "0:01:29"]

1. e4 {[%clk 0:03:00]}  d5 {[%clk 0:02:59]} 2. exd5 {[%clk 0:03:00]}  Nf6 {[%clk 0:02:58]} 3. c4 {[%clk 0:02:59]}  c6 {[%clk 0:02:57]} 4. d4 {[%clk 0:02:59]}  cxd5 {[%clk 0:02:56]} 5. Nc3 {[%clk 0:03:00]}  Nc6 {[%clk 0:02:55]} 6. Nf3 {[%clk 0:03:00]}  Be6 {[%clk 0:02:54]} 7. c5 {[%clk 0:02:58]}  g6 {[%clk 0:02:53]} 8. Bb5 {[%clk 0:02:57]}  Bg7 {[%clk 0:02:53]} 9. O-O {[%clk 0:02:54]}  O-O {[%clk 0:02:52]} 10. Bxc6 {[%clk 0:02:54]}  bxc6 {[%clk 0:02:51]} 11. b4 {[%clk 0:02:54]}  Ne4 {[%clk 0:02:46]} 12. Na4 {[%clk 0:02:51]}  a5 {[%clk 0:02:30]} 13. Nb6 {[%clk 0:02:47]}  Ra7 {[%clk 0:02:25]} 14. bxa5 {[%clk 0:02:39]}  Rxa5 {[%clk 0:02:23]} 15. Be3 {[%clk 0:02:37]}  Bg4 {[%clk 0:02:15]} 16. h3 {[%clk 0:02:28]}  Bxf3 {[%clk 0:02:13]} 17. Qxf3 {[%clk 0:02:27]}  e5 {[%clk 0:02:13]} 18. dxe5 {[%clk 0:01:51]}  Bxe5 {[%clk 0:02:13]} 19. Rad1 {[%clk 0:01:46]}  Rxa2 {[%clk 0:02:12]} 20. Qxe4 {[%clk 0:01:30]}  dxe4 {[%clk 0:02:09]} 21. Rxd8 {[%clk 0:01:29]}  Rxd8 {[%clk 0:02:08]} 22. g3 {[%clk 0:01:24]}  Rd3 {[%clk 0:02:00]} 23. Nc4 {[%clk 0:01:13]}  Bd4 {[%clk 0:01:58]} 24. Bxd4 {[%clk 0:01:09]}  Rxd4 {[%clk 0:01:59]} 25. Nd6 {[%clk 0:01:07]}  Rc2 {[%clk 0:01:45]} 26. Rb1 {[%clk 0:01:01]}  Rxc5 {[%clk 0:01:40]} 27. Rb8+ {[%clk 0:00:59]}  Kg7 {[%clk 0:01:39]} 28. Ne8+ {[%clk 0:00:59]}  Kh6 {[%clk 0:01:39]} 29. Nf6 {[%clk 0:00:56]}  Rf5 {[%clk 0:01:29]} 30. Ng4+ {[%clk 0:00:52]}  Kg7 {[%clk 0:01:29]} 0-1


[Site "https://www.chess.com"]

[Event "Titled Tuesday Blitz October 25 Late 2022"]
[White "Castellanos Gomez, Alejandro"]
[Black "Baskakov, Egor"]
[WhiteFideId "22284141"]
[BlackFideId "24197866"]
[WhiteElo "2168"]
[BlackElo "2211"]
[Result "0-1"]
[Round "09"]
[TimeControl "180+1"]
[Date "2022.10.26"]
[WhiteClock "0:00:01"]
[BlackClock "0:01:59"]

1. d4 {[%clk 0:03:00]}  Nf6 {[%clk 0:02:59]} 2. Bf4 {[%clk 0:03:00]}  e6 {[%clk 0:02:55]} 3. e3 {[%clk 0:03:00]}  d5 {[%clk 0:02:55]} 4. Nd2 {[%clk 0:02:59]}  Bd6 {[%clk 0:02:54]} 5. Bg3 {[%clk 0:02:59]}  O-O {[%clk 0:02:55]} 6. Bd3 {[%clk 0:02:58]}  c5 {[%clk 0:02:55]} 7. c3 {[%clk 0:02:59]}  Nc6 {[%clk 0:02:55]} 8. Ngf3 {[%clk 0:02:58]}  Qe7 {[%clk 0:02:55]} 9. Ne5 {[%clk 0:02:58]}  Nd7 {[%clk 0:02:52]} 10. Nxc6 {[%clk 0:02:54]}  bxc6 {[%clk 0:02:52]} 11. Qh5 {[%clk 0:02:24]}  f5 {[%clk 0:02:50]} 12. Nf3 {[%clk 0:02:18]}  c4 {[%clk 0:02:42]} 13. Bc2 {[%clk 0:02:16]}  Rb8 {[%clk 0:02:42]} 14. Rb1 {[%clk 0:01:57]}  g6 {[%clk 0:02:36]} 15. Qh6 {[%clk 0:01:54]}  e5 {[%clk 0:02:35]} 16. Ba4 {[%clk 0:01:22]}  exd4 {[%clk 0:02:26]} 17. Nxd4 {[%clk 0:01:18]}  f4 {[%clk 0:02:26]} 18. Bh4 {[%clk 0:01:17]}  Qe4 {[%clk 0:02:26]} 19. O-O {[%clk 0:00:57]}  Ne5 {[%clk 0:02:24]} 20. Bc2 {[%clk 0:00:48]}  Nd3 {[%clk 0:02:14]} 21. Kh1 {[%clk 0:00:14]}  f3 {[%clk 0:02:01]} 22. Bg3 {[%clk 0:00:02]}  fxg2+ {[%clk 0:02:00]} 23. Kg1 {[%clk 0:00:02]}  gxf1=Q+ {[%clk 0:02:00]} 24. Rxf1 {[%clk 0:00:02]}  Bxg3 {[%clk 0:01:59]} 25. hxg3 {[%clk 0:00:01]}  Rxb2 {[%clk 0:01:59]} 0-1


[Site "https://www.chess.com"]

[Event "Titled Tuesday Blitz October 25 Late 2022"]
[White "Chigaev, Maksim"]
[Black "Lawson, Eric"]
[WhiteFideId "4108116"]
[BlackFideId "2604116"]
[WhiteElo "2537"]
[BlackElo "2554"]
[Result "1-0"]
[Round "09"]
[TimeControl "180+1"]
[Date "2022.10.26"]
[WhiteClock "0:00:31"]
[BlackClock "0:00:08"]

1. Nf3 {[%clk 0:03:00]}  d5 {[%clk 0:02:58]} 2. c4 {[%clk 0:03:00]}  c6 {[%clk 0:02:58]} 3. g3 {[%clk 0:03:00]}  Nf6 {[%clk 0:02:58]} 4. Bg2 {[%clk 0:03:00]}  e6 {[%clk 0:02:52]} 5. O-O {[%clk 0:03:01]}  Nbd7 {[%clk 0:02:52]} 6. b3 {[%clk 0:02:59]}  Bd6 {[%clk 0:02:50]} 7. Bb2 {[%clk 0:02:58]}  Qe7 {[%clk 0:02:50]} 8. d3 {[%clk 0:02:58]}  O-O {[%clk 0:02:48]} 9. Nbd2 {[%clk 0:02:49]}  e5 {[%clk 0:02:42]} 10. cxd5 {[%clk 0:02:33]}  cxd5 {[%clk 0:02:43]} 11. Nh4 {[%clk 0:02:33]}  Nb6 {[%clk 0:02:21]} 12. e4 {[%clk 0:02:33]}  d4 {[%clk 0:02:18]} 13. Nf5 {[%clk 0:02:26]}  Bxf5 {[%clk 0:02:11]} 14. exf5 {[%clk 0:02:26]}  Ba3 {[%clk 0:02:10]} 15. Bxa3 {[%clk 0:02:23]}  Qxa3 {[%clk 0:02:11]} 16. Bxb7 {[%clk 0:02:24]}  Rab8 {[%clk 0:02:11]} 17. Be4 {[%clk 0:02:20]}  Rfc8 {[%clk 0:02:09]} 18. h4 {[%clk 0:02:15]}  a5 {[%clk 0:02:03]} 19. g4 {[%clk 0:02:06]}  Nxe4 {[%clk 0:01:37]} 20. Nxe4 {[%clk 0:01:56]}  a4 {[%clk 0:01:33]} 21. g5 {[%clk 0:01:49]}  Nd5 {[%clk 0:01:30]} 22. Qf3 {[%clk 0:01:48]}  Nf4 {[%clk 0:01:26]} 23. bxa4 {[%clk 0:01:16]}  Qxd3 {[%clk 0:01:21]} 24. Qxd3 {[%clk 0:01:16]}  Nxd3 {[%clk 0:01:22]} 25. Rab1 {[%clk 0:01:15]}  Nb2 {[%clk 0:01:11]} 26. a5 {[%clk 0:01:11]}  Rc2 {[%clk 0:01:07]} 27. a6 {[%clk 0:01:07]}  Ra8 {[%clk 0:01:06]} 28. Rfc1 {[%clk 0:01:08]}  Rxc1+ {[%clk 0:00:44]} 29. Rxc1 {[%clk 0:01:08]}  Kf8 {[%clk 0:00:43]} 30. f6 {[%clk 0:01:02]}  gxf6 {[%clk 0:00:39]} 31. gxf6 {[%clk 0:01:03]}  h6 {[%clk 0:00:31]} 32. Rc7 {[%clk 0:01:00]}  Na4 {[%clk 0:00:26]} 33. a7 {[%clk 0:00:59]}  Kg8 {[%clk 0:00:23]} 34. Rb7 {[%clk 0:00:55]}  Kh7 {[%clk 0:00:22]} 35. h5 {[%clk 0:00:56]}  Nc3 {[%clk 0:00:22]} 36. Rxf7+ {[%clk 0:00:35]}  Kg8 {[%clk 0:00:22]} 37. Rg7+ {[%clk 0:00:31]}  Kf8 {[%clk 0:00:22]} 38. Nc5 {[%clk 0:00:31]}  Rxa7 {[%clk 0:00:10]} 39. Ne6+ {[%clk 0:00:30]}  Ke8 {[%clk 0:00:09]} 40. Rxa7 {[%clk 0:00:31]}  Nd5 {[%clk 0:00:08]} 41. f7# {[%clk 0:00:31]} 1-0


[Site "https://www.chess.com"]

[Event "Titled Tuesday Blitz October 25 Late 2022"]
[White "Ferreira, Vitor Hugo Vieira"]
[Black "Omariev, Maksim"]
[WhiteFideId "2119765"]
[BlackFideId "4193423"]
[WhiteElo "2168"]
[BlackElo "2413"]
[Result "1/2-1/2"]
[Round "09"]
[TimeControl "180+1"]
[Date "2022.10.26"]
[WhiteClock "0:00:12"]
[BlackClock "0:00:02"]

1. Nf3 {[%clk 0:02:58]}  d5 {[%clk 0:03:00]} 2. g3 {[%clk 0:02:57]}  c6 {[%clk 0:03:00]} 3. Bg2 {[%clk 0:02:56]}  Nf6 {[%clk 0:03:01]} 4. O-O {[%clk 0:02:56]}  Bf5 {[%clk 0:03:02]} 5. c4 {[%clk 0:02:56]}  e6 {[%clk 0:03:03]} 6. cxd5 {[%clk 0:02:57]}  exd5 {[%clk 0:03:03]} 7. d3 {[%clk 0:02:58]}  Be7 {[%clk 0:03:02]} 8. Nc3 {[%clk 0:02:58]}  O-O {[%clk 0:03:02]} 9. Nd4 {[%clk 0:02:58]}  Bg6 {[%clk 0:02:59]} 10. e4 {[%clk 0:02:58]}  Re8 {[%clk 0:02:29]} 11. e5 {[%clk 0:02:57]}  Nfd7 {[%clk 0:02:28]} 12. f4 {[%clk 0:02:51]}  Bc5 {[%clk 0:02:25]} 13. Be3 {[%clk 0:02:50]}  f6 {[%clk 0:02:19]} 14. e6 {[%clk 0:02:46]}  f5 {[%clk 0:01:29]} 15. Re1 {[%clk 0:02:24]}  Nf8 {[%clk 0:01:05]} 16. Na4 {[%clk 0:01:57]}  Bxd4 {[%clk 0:01:00]} 17. Bxd4 {[%clk 0:01:57]}  Nxe6 {[%clk 0:01:01]} 18. Be5 {[%clk 0:01:58]}  Nd7 {[%clk 0:00:56]} 19. d4 {[%clk 0:01:58]}  Nb6 {[%clk 0:00:39]} 20. Nc3 {[%clk 0:01:55]}  Nc4 {[%clk 0:00:37]} 21. b3 {[%clk 0:01:56]}  Nd6 {[%clk 0:00:37]} 22. Kh1 {[%clk 0:01:53]}  Ne4 {[%clk 0:00:36]} 23. Nxe4 {[%clk 0:01:50]}  dxe4 {[%clk 0:00:27]} 24. Qd2 {[%clk 0:01:50]}  Nc7 {[%clk 0:00:26]} 25. Red1 {[%clk 0:01:49]}  Bh5 {[%clk 0:00:26]} 26. Re1 {[%clk 0:01:46]}  Nd5 {[%clk 0:00:25]} 27. Rac1 {[%clk 0:01:46]}  a5 {[%clk 0:00:24]} 28. a4 {[%clk 0:01:45]}  Qd7 {[%clk 0:00:24]} 29. Rc5 {[%clk 0:01:43]}  b6 {[%clk 0:00:23]} 30. Rc4 {[%clk 0:01:42]}  Re6 {[%clk 0:00:23]} 31. Rec1 {[%clk 0:01:42]}  Rh6 {[%clk 0:00:23]} 32. Qc2 {[%clk 0:01:40]}  Rc8 {[%clk 0:00:23]} 33. Qd2 {[%clk 0:01:36]}  Bg4 {[%clk 0:00:21]} 34. Kg1 {[%clk 0:01:34]}  Qe8 {[%clk 0:00:20]} 35. Bf1 {[%clk 0:01:29]}  Bf3 {[%clk 0:00:17]} 36. Be2 {[%clk 0:01:27]}  Qh5 {[%clk 0:00:13]} 37. Bxf3 {[%clk 0:01:25]}  Qxf3 {[%clk 0:00:12]} 38. Rf1 {[%clk 0:01:18]}  Qxb3 {[%clk 0:00:11]} 39. Rcc1 {[%clk 0:01:13]}  Qxa4 {[%clk 0:00:10]} 40. Kh1 {[%clk 0:01:10]}  Qb4 {[%clk 0:00:09]} 41. Qa2 {[%clk 0:01:06]}  Qb5 {[%clk 0:00:04]} 42. Rb1 {[%clk 0:01:05]}  Qa6 {[%clk 0:00:05]} 43. Rfc1 {[%clk 0:01:04]}  Kh8 {[%clk 0:00:04]} 44. h4 {[%clk 0:00:49]}  b5 {[%clk 0:00:04]} 45. Rc5 {[%clk 0:00:44]}  b4 {[%clk 0:00:03]} 46. Rbc1 {[%clk 0:00:44]}  Rd8 {[%clk 0:00:02]} 47. Rxa5 {[%clk 0:00:42]}  Qd3 {[%clk 0:00:02]} 48. Ra8 {[%clk 0:00:29]}  Qf3+ {[%clk 0:00:03]} 49. Kh2 {[%clk 0:00:28]}  Rg8 {[%clk 0:00:02]} 50. Rxg8+ {[%clk 0:00:27]}  Kxg8 {[%clk 0:00:03]} 51. Qa8+ {[%clk 0:00:27]}  Kf7 {[%clk 0:00:04]} 52. Qb7+ {[%clk 0:00:27]}  Ne7 {[%clk 0:00:04]} 53. Qxb4 {[%clk 0:00:20]}  Rg6 {[%clk 0:00:04]} 54. Qe1 {[%clk 0:00:16]}  Nd5 {[%clk 0:00:03]} 55. Rxc6 {[%clk 0:00:14]}  Rxc6 {[%clk 0:00:03]} 56. h5 {[%clk 0:00:13]}  Rc2+ {[%clk 0:00:03]} 57. Kh3 {[%clk 0:00:14]}  Qg2+ {[%clk 0:00:03]} 58. Kh4 {[%clk 0:00:14]}  Qh2+ {[%clk 0:00:02]} 59. Kg5 {[%clk 0:00:15]}  h6+ {[%clk 0:00:03]} 60. Kxf5 {[%clk 0:00:15]}  Qh3+ {[%clk 0:00:03]} 61. Kxe4 {[%clk 0:00:15]}  Nc3+ {[%clk 0:00:02]} 62. Kd3 {[%clk 0:00:14]}  Qf5+ {[%clk 0:00:03]} 63. Ke3 {[%clk 0:00:13]}  Nd5+ {[%clk 0:00:03]} 64. Kf3 {[%clk 0:00:12]}  Rc3+ {[%clk 0:00:03]} 65. Kg2 {[%clk 0:00:12]}  Qc2+ {[%clk 0:00:02]} 66. Kh3 {[%clk 0:00:12]}  Qf5+ {[%clk 0:00:02]} 67. Kg2 {[%clk 0:00:12]}  Ne3+ {[%clk 0:00:02]} 68. Kf3 {[%clk 0:00:12]}  Nd5+ {[%clk 0:00:02]} 69. Kg2 {[%clk 0:00:12]} 1/2-1/2


[Site "https://www.chess.com"]